bitfinex/quotes_BTCUSD_20241004
["timestamp","ask_amount","ask_price","bid_price","bid_amount"]
[1728050190198,0.01342058,61762.0,61761.0,0.5450056]
[1728050190412,0.002,61767.0,61766.0,0.161901]
[1728050190645,0.01342297,61767.0,61766.0,0.161901]
[1728050190861,0.01342297,61772.0,61766.0,0.33331421]
[1728050191135,0.17531239,61771.0,61768.0,0.161894]
[1728050191319,0.01342439,61770.0,61769.0,0.161893]
[1728050191531,0.17531039,61772.0,61769.0,0.161893]
[1728050191745,0.01342439,61771.0,61770.0,0.16189]
[1728050192042,0.01342439,61771.0,61769.0,0.17137398]
[1728050192249,0.161886,61772.0,61770.0,0.0094699]
[1728050192450,0.01341161,61771.0,61770.0,0.0094699]
[1728050192710,0.01341161,61771.0,61768.0,0.161895]
[1728050192925,0.01341161,61771.0,61769.0,0.161892]
[1728050193122,0.01341161,61770.0,61769.0,0.161892]
[1728050193400,0.001642,61774.0,61768.0,0.485683]
[1728050193401,0.007,61772.0,61768.0,0.485683]
[1728050193600,0.007,61772.0,61767.0,0.323796]
[1728050193601,0.01340354,61770.0,61767.0,0.323796]
[1728050193790,0.01340354,61770.0,61769.0,0.161893]
[1728050194412,0.161895,61769.0,61766.0,0.1619]
[1728050194612,0.01340354,61768.0,61761.0,0.001021]
[1728050194813,0.01340354,61767.0,61763.0,0.323816]
[1728050195036,0.162891,61770.0,61767.0,0.161898]
[1728050195236,0.01342832,61769.0,61768.0,0.161896]
[1728050195681,0.01342832,61769.0,61768.0,0.17220905]
[1728050195909,0.01342832,61769.0,61768.0,0.01031305]
[1728050196836,0.161893,61769.0,61768.0,0.01131305]
[1728050197078,0.31318105,61769.0,61768.0,0.01131305]
[1728050197308,0.1753336,61769.0,61768.0,0.000821]
[1728050197545,0.3776336,61769.0,61768.0,0.000821]
[1728050197760,0.3756336,61769.0,61768.0,0.000821]
[1728050197992,0.47511728,61769.0,61768.0,0.000821]
[1728050198658,0.3766336,61769.0,61768.0,0.000821]
[1728050199064,0.3766336,61769.0,61768.0,0.001821]
[1728050199065,0.3856336,61769.0,61768.0,0.001821]
[1728050199281,0.3816336,61769.0,61768.0,0.001821]
[1728050199496,0.3726336,61769.0,61768.0,0.000821]
[1728050199720,0.3966336,61769.0,61768.0,0.002821]
[1728050199942,0.55982031,61769.0,61768.0,0.002821]
[1728050200257,0.54882031,61769.0,61768.0,0.001821]
[1728050200381,0.54682031,61769.0,61768.0,0.001821]
[1728050200612,0.54682031,61769.0,61761.0,0.001021]
[1728050200613,0.161911,61762.0,61761.0,0.001021]
[1728050200841,0.56632132,61762.0,61761.0,0.001021]
[1728050201089,0.2983516,61762.0,61761.0,0.001021]
[1728050201576,0.57976192,61762.0,61761.0,0.001021]
[1728050201837,0.66156192,61762.0,61761.0,0.001021]
[1728050202124,0.66156192,61762.0,61742.0,0.00082]
[1728050202125,0.26194,61751.0,61742.0,0.00082]
[1728050202284,0.284961,61743.0,61742.0,0.00082]
[1728050202535,0.284961,61743.0,61741.0,0.0002]
[1728050202536,0.284964,61742.0,61741.0,0.0002]
[1728050202836,0.284964,61742.0,61724.0,0.0162186]
[1728050202837,0.285008,61725.0,61724.0,0.25819506]
[1728050203056,0.285008,61725.0,61720.0,0.0001]
[1728050203057,0.3540901,61725.0,61720.0,0.0001]
[1728050203412,0.3540901,61725.0,61716.0,0.04580904]
[1728050203413,0.287029,61717.0,61716.0,0.04580904]
[1728050203517,0.26404,61713.0,61712.0,0.33602332]
[1728050203763,0.26404,61713.0,61712.0,0.28962061]
[1728050203764,0.46254,61713.0,61712.0,0.28962061]
[1728050203996,0.285064,61704.0,61699.0,0.000821]
[1728050204224,0.59548072,61704.0,61699.0,0.000821]
[1728050204922,0.69018072,61704.0,61699.0,0.000821]
[1728050205673,0.70351042,61704.0,61699.0,0.000821]
[1728050206158,0.71751042,61704.0,61703.0,0.02525699]
[1728050206406,0.68850402,61704.0,61703.0,0.02525699]
[1728050206915,0.70250402,61704.0,61703.0,0.02525699]
[1728050207146,0.67517432,61704.0,61703.0,0.02525699]
[1728050207365,0.40941032,61704.0,61703.0,0.02525699]
[1728050207588,0.63082695,61704.0,61703.0,0.02525699]
[1728050207807,0.46876295,61704.0,61703.0,0.02525699]
[1728050208052,0.46876295,61704.0,61703.0,0.02607799]
[1728050208543,0.096,61712.0,61703.0,0.02507799]
[1728050208544,0.28141032,61705.0,61703.0,0.02507799]
[1728050208787,0.176064,61704.0,61703.0,0.02507799]
[1728050209036,0.176064,61704.0,61699.0,0.000821]
[1728050209037,0.014,61704.0,61699.0,0.000821]
[1728050209271,0.324112,61707.0,61699.0,0.000821]
[1728050209272,0.44348432,61700.0,61699.0,0.000821]
[1728050209748,0.46648432,61700.0,61699.0,0.000821]
[1728050210007,0.54348432,61700.0,61699.0,0.000821]
[1728050210407,0.38141032,61700.0,61699.0,0.000821]
[1728050210604,0.54348432,61700.0,61699.0,0.000821]
[1728050210762,0.7219941,61700.0,61699.0,0.000821]
[1728050211184,0.7349941,61700.0,61699.0,0.000821]
[1728050211595,0.7459941,61700.0,61699.0,0.000821]
[1728050212010,0.7599941,61700.0,61699.0,0.000821]
[1728050212221,0.41941032,61700.0,61699.0,0.000821]
[1728050212433,0.024,61700.0,61699.0,0.000821]
[1728050212648,0.186074,61700.0,61699.0,0.000821]
[1728050212875,0.200074,61700.0,61699.0,0.000821]
[1728050213135,0.162121,61682.0,61681.0,0.26044793]
[1728050213577,0.44353132,61682.0,61681.0,0.26044793]
[1728050213785,0.24060553,61682.0,61681.0,0.26044793]
[1728050214015,0.40272653,61682.0,61681.0,0.26044793]
[1728050214249,0.40372653,61682.0,61681.0,0.26044793]
[1728050214487,0.53094448,61682.0,61681.0,0.26044793]
[1728050214723,0.53094448,61682.0,61681.0,0.0002]
[1728050214945,0.53394448,61682.0,61681.0,0.0002]
[1728050215188,0.50794448,61682.0,61681.0,0.0002]
[1728050215427,0.40272653,61682.0,61681.0,0.0002]
[1728050215771,0.40972653,61682.0,61681.0,0.0002]
[1728050216132,0.24060553,61682.0,61681.0,0.0002]
[1728050216352,0.24960553,61682.0,61681.0,0.0002]
[1728050216570,0.41772653,61682.0,61681.0,0.0002]
[1728050216796,0.24960553,61682.0,61681.0,0.0002]
[1728050217254,0.25260553,61682.0,61681.0,0.162324]
[1728050217483,0.012,61682.0,61681.0,0.162324]
[1728050217719,0.012,61682.0,61681.0,0.28964619]
[1728050217911,0.003,61682.0,61681.0,0.241424]
[1728050218157,0.01,61682.0,61681.0,0.241424]
[1728050218355,0.007,61682.0,61681.0,0.31369514]
[1728050218578,0.24197646,61686.0,61681.0,0.0793]
[1728050218789,0.28141032,61687.0,61686.0,0.162111]
[1728050220160,0.28141032,61692.0,61691.0,0.162098]
[1728050220409,0.001644,61706.0,61700.0,0.486222]
[1728050220410,0.24197646,61701.0,61700.0,0.486222]
[1728050220603,0.24197646,61692.0,61689.0,0.04817288]
[1728050220845,0.52338678,61701.0,61689.0,0.04817288]
[1728050220846,0.324187,61693.0,61689.0,0.04817288]
[1728050221110,0.52338678,61701.0,61686.0,0.162109]
[1728050221111,0.162099,61691.0,61686.0,0.162109]
[1728050221348,0.162099,61691.0,61682.0,0.07227114]
[1728050221349,0.162119,61683.0,61682.0,0.04817288]
[1728050221569,0.28141032,61685.0,61681.0,0.04919488]
[1728050221794,0.002,61687.0,61681.0,0.04919488]
[1728050222036,0.44351232,61690.0,61684.0,0.324233]
[1728050222037,0.24197646,61689.0,61684.0,0.324233]
[1728050222227,0.006,61691.0,61687.0,0.324216]
[1728050222445,0.006,61691.0,61687.0,0.324213]
[1728050222933,0.162065,61704.0,61699.0,0.162075]
[1728050223219,0.147281,61714.0,61689.0,0.0797]
[1728050223220,0.28141032,61710.0,61700.0,0.162074]
[1728050223361,0.28141032,61710.0,61703.0,0.162064]
[1728050223362,0.40403046,61708.0,61703.0,0.162064]
[1728050223598,0.40403046,61708.0,61703.0,0.162065]
[1728050223824,0.40403046,61708.0,61690.0,0.37237288]
[1728050223825,0.24197646,61708.0,61705.0,0.162061]
[1728050224047,0.40403146,61708.0,61704.0,0.162063]
[1728050224291,0.40403146,61708.0,61697.0,0.162081]
[1728050224292,0.165072,61701.0,61697.0,0.162081]
[1728050224505,0.16208,61698.0,61694.0,0.162089]
[1728050224764,0.324144,61701.0,61689.0,0.0797]
[1728050224765,0.324191,61692.0,61689.0,0.04818685]
[1728050224991,0.324145,61701.0,61688.0,0.07227114]
[1728050224992,0.162103,61689.0,61688.0,0.07227114]
[1728050225456,0.60561232,61690.0,61681.0,0.24192581]
[1728050225457,0.324217,61687.0,61682.0,0.04818685]
[1728050225657,0.0951,61692.0,61681.0,0.14557037]
[1728050225658,0.162121,61682.0,61681.0,0.14557037]
[1728050225868,0.07677543,61682.0,61681.0,0.14558092]
[1728050226308,0.23889643,61682.0,61681.0,0.09738352]
[1728050226545,0.23889643,61682.0,61681.0,0.001022]
[1728050226787,0.21302206,61682.0,61675.0,0.12051119]
[1728050227016,0.023,61670.0,61661.0,0.0002]
[1728050227243,0.28141032,61664.0,61661.0,0.0002]
[1728050227510,0.17541563,61664.0,61661.0,0.0002]
[1728050227684,0.53923151,61664.0,61661.0,0.0002]
[1728050228636,0.4708409,61664.0,61661.0,0.0002]
[1728050229098,0.01326158,61664.0,61661.0,0.0002]
[1728050229318,0.01326158,61664.0,61663.0,0.1783896]
[1728050229319,0.02726158,61664.0,61663.0,0.1783896]
[1728050229773,0.014,61664.0,61663.0,0.23127124]
[1728050229987,0.45757932,61664.0,61663.0,0.06910024]
[1728050230206,0.51178361,61664.0,61663.0,0.0162186]
[1728050230422,0.46891379,61664.0,61663.0,0.0162186]
[1728050230689,0.45691379,61664.0,61663.0,0.0162186]
[1728050230863,0.47091379,61664.0,61663.0,0.0162186]
[1728050231300,0.45691379,61664.0,61663.0,0.0162186]
[1728050231513,0.01333447,61664.0,61663.0,0.23132012]
[1728050231738,0.349722,61671.0,61663.0,0.06914912]
[1728050231739,0.02542,61671.0,61663.0,0.06914912]
[1728050231967,0.40414246,61665.0,61664.0,0.05293052]
[1728050232227,0.162166,61665.0,61664.0,0.05293052]
[1728050232497,0.28141032,61667.0,61664.0,0.05293052]
[1728050232725,0.01337219,61665.0,61664.0,0.05293052]
[1728050232942,0.17553819,61665.0,61664.0,0.05293052]
[1728050233158,0.29409734,61665.0,61664.0,0.05293052]
[1728050234279,0.18353819,61665.0,61664.0,0.05293052]
[1728050234743,0.02137219,61665.0,61664.0,0.05293052]
[1728050234976,0.02137219,61665.0,61664.0,0.14938306]
[1728050235220,0.18353819,61665.0,61664.0,0.14938306]
[1728050235437,0.19253819,61665.0,61664.0,0.14938306]
[1728050235655,0.19253819,61665.0,61664.0,0.05293052]
[1728050235906,0.29288691,61665.0,61664.0,0.14938306]
[1728050236180,0.01837219,61665.0,61664.0,0.14938306]
[1728050236357,0.01837219,61665.0,61664.0,0.21509952]
[1728050236607,0.02637219,61665.0,61664.0,0.21509952]
[1728050236838,0.24197646,61680.0,61666.0,0.324325]
[1728050236839,0.324259,61679.0,61666.0,0.324325]
[1728050237071,0.24197646,61680.0,61669.0,0.324307]
[1728050237072,0.24197646,61673.0,61669.0,0.324307]
[1728050237312,0.24197646,61673.0,61670.0,0.05293052]
[1728050237313,0.01336606,61672.0,61670.0,0.05293052]
[1728050237546,0.01336606,61671.0,61670.0,0.162153]
[1728050237765,0.01336606,61671.0,61670.0,0.21526668]
[1728050238198,0.01336606,61671.0,61670.0,0.05311368]
[1728050238440,0.16215,61671.0,61670.0,0.05311368]
[1728050238703,0.324265,61678.0,61671.0,0.162149]
[1728050238848,0.324265,61678.0,61670.0,0.05311368]
[1728050238849,0.40411346,61676.0,61675.0,0.09654552]
[1728050239079,0.40411346,61676.0,61675.0,0.1496592]
[1728050239295,0.17551441,61676.0,61675.0,0.1496592]
[1728050239921,0.17751441,61676.0,61675.0,0.1496592]
[1728050240149,0.32068498,61676.0,61675.0,0.1496592]
[1728050240377,0.32068498,61676.0,61675.0,0.14974506]
[1728050240378,0.7020953,61676.0,61675.0,0.14974506]
[1728050240611,0.7020953,61676.0,61675.0,0.05311368]
[1728050240843,0.7020953,61676.0,61675.0,0.12558886]
[1728050241090,0.7070953,61676.0,61675.0,0.12658886]
[1728050241302,0.8247953,61676.0,61675.0,0.05411368]
[1728050241517,0.8177953,61676.0,61675.0,0.17379558]
[1728050241873,0.8177953,61676.0,61675.0,0.05411368]
[1728050241874,0.7997953,61676.0,61675.0,0.05411368]
[1728050241989,0.80941789,61676.0,61675.0,0.05411368]
[1728050242239,0.81978201,61676.0,61675.0,0.05311368]
[1728050242436,0.81778201,61676.0,61675.0,0.05311368]
[1728050242663,0.162153,61670.0,61669.0,0.05311998]
[1728050242855,0.210798,61670.0,61669.0,0.05311998]
[1728050243064,0.048645,61670.0,61665.0,0.05311998]
[1728050243268,0.162169,61664.0,61663.0,0.23073149]
[1728050243486,0.162169,61664.0,61663.0,0.07016036]
[1728050243984,0.17553312,61664.0,61663.0,0.04316036]
[1728050244169,0.17553312,61664.0,61663.0,0.25753094]
[1728050244170,0.41750958,61664.0,61663.0,0.25753094]
[1728050244396,0.17553312,61664.0,61663.0,0.04316036]
[1728050244618,0.22687507,61664.0,61663.0,0.21449881]
[1728050244825,0.22687507,61664.0,61663.0,0.04316036]
[1728050245058,0.22687507,61664.0,61663.0,0.00082]
[1728050245059,0.17553312,61664.0,61663.0,0.00082]
[1728050245316,0.17553312,61664.0,61663.0,0.05386474]
[1728050245317,0.01336412,61664.0,61663.0,0.05386474]
[1728050245520,0.01336412,61664.0,61663.0,0.21703574]
[1728050245521,0.02237771,61664.0,61663.0,0.21703574]
[1728050245967,0.02237771,61664.0,61663.0,0.05486474]
[1728050246211,0.02237771,61664.0,61663.0,0.21703574]
[1728050247169,0.02238895,61664.0,61663.0,0.21703574]
[1728050248270,0.01338895,61664.0,61663.0,0.21603574]
[1728050248464,0.01438895,61664.0,61663.0,0.37884937]
[1728050249015,0.01438895,61664.0,61663.0,0.45504937]
[1728050249224,0.01438895,61664.0,61663.0,0.29223574]
[1728050250122,0.001,61664.0,61663.0,0.29223574]
[1728050251276,0.001,61664.0,61663.0,0.57612718]
[1728050251600,0.24197646,61676.0,61668.0,0.005]
[1728050251844,0.24197646,61676.0,61675.0,0.16214]
[1728050252099,0.24197646,61676.0,61671.0,0.3243]
[1728050252100,0.24197646,61676.0,61669.0,0.324308]
[1728050252101,0.25539015,61676.0,61669.0,0.324308]
[1728050252339,0.25539015,61676.0,61675.0,0.16214]
[1728050252340,0.01341291,61676.0,61675.0,0.16214]
[1728050252577,0.01341291,61676.0,61675.0,0.21518153]
[1728050252816,0.162123,61682.0,61679.0,0.162128]
[1728050253094,0.28141032,61691.0,61679.0,0.162128]
[1728050253095,0.24197646,61685.0,61680.0,0.12894153]
[1728050253338,0.24197646,61698.0,61694.0,0.16209]
[1728050253597,0.24197646,61698.0,61681.0,0.05304153]
[1728050253598,0.24197646,61687.0,61686.0,0.37724701]
[1728050253830,0.01343947,61687.0,61686.0,0.26817444]
[1728050254066,0.01343947,61692.0,61686.0,0.21513601]
[1728050254318,0.01343976,61691.0,61690.0,0.1621]
[1728050254547,0.01343976,61691.0,61690.0,0.21508262]
[1728050255501,0.01343976,61691.0,61690.0,0.1621]
[1728050255760,0.01543976,61691.0,61690.0,0.1621]
[1728050255995,0.01643976,61691.0,61690.0,0.1621]
[1728050256968,0.01343976,61691.0,61690.0,0.1621]
[1728050257206,0.01343976,61691.0,61690.0,0.1631]
[1728050257716,0.01343976,61691.0,61690.0,0.1621]
[1728050258210,0.01543976,61691.0,61690.0,0.1621]
[1728050258436,0.002,61691.0,61690.0,0.1621]
[1728050258974,0.00364,61691.0,61690.0,0.1621]
[1728050262428,0.00364,61691.0,61680.0,0.0759]
[1728050263152,0.00364,61691.0,61689.0,0.162103]
[1728050263382,0.00364,61691.0,61681.0,0.324245]
[1728050263383,0.24197646,61690.0,61681.0,0.324245]
[1728050263641,0.00364,61691.0,61690.0,0.1621]
[1728050263642,0.00164,61691.0,61690.0,0.1621]
[1728050264195,0.00264,61691.0,61690.0,0.1621]
[1728050264413,0.00164,61691.0,61690.0,0.1621]
[1728050264636,0.00164,61691.0,61689.0,0.324205]
[1728050264637,0.005,61690.0,61680.0,0.0759]
[1728050264901,0.005,61690.0,61689.0,0.162103]
[1728050265101,0.005,61690.0,61688.0,0.32421]
[1728050265102,0.005,61690.0,61688.0,0.162105]
[1728050265374,0.005,61690.0,61683.0,0.324236]
[1728050265375,0.162113,61686.0,61683.0,0.162118]
[1728050265621,0.172738,61691.0,61690.0,0.001]
[1728050265851,0.2520134,61691.0,61690.0,0.001]
[1728050266794,0.2520134,61691.0,61680.0,0.0759]
[1728050266795,0.324201,61690.0,61680.0,0.0759]
[1728050267040,0.162111,61686.0,61683.0,0.162119]
[1728050267325,0.162106,61688.0,61683.0,0.324235]
[1728050267502,0.162104,61689.0,61686.0,0.16211]
[1728050267733,0.56617846,61690.0,61687.0,0.162107]
[1728050267734,0.24197646,61690.0,61687.0,0.162107]
[1728050267971,0.24197646,61690.0,61686.0,0.16211]
[1728050268229,0.24197646,61690.0,61680.0,0.400152]
[1728050268230,0.162113,61685.0,61682.0,0.162121]
[1728050268477,0.324208,61689.0,61683.0,0.162117]
[1728050268706,0.007,61689.0,61686.0,0.001]
[1728050268959,0.169103,61689.0,61686.0,0.16311]
[1728050269187,0.173103,61689.0,61686.0,0.001]
[1728050269443,0.007,61689.0,61686.0,0.001]
[1728050269665,0.162106,61688.0,61686.0,0.001]
[1728050269896,0.1621,61690.0,61686.0,0.16211]
[1728050270156,0.4055778,61690.0,61681.0,0.324247]
[1728050270391,0.4055778,61690.0,61684.0,0.162116]
[1728050270392,0.002,61685.0,61684.0,0.162116]
[1728050270669,0.01539393,61685.0,61684.0,0.162116]
[1728050271152,0.01339393,61685.0,61684.0,0.162116]
[1728050271637,0.01339393,61685.0,61677.0,0.324266]
[1728050271882,0.01339393,61685.0,61677.0,0.324267]
[1728050271883,0.01339393,61684.0,61677.0,0.324267]
[1728050272114,0.01339393,61684.0,61667.0,0.00534883]
[1728050272355,0.24197646,61688.0,61670.0,0.28141032]
[1728050272673,0.24197646,61688.0,61667.0,0.00534883]
[1728050272674,0.28019211,61688.0,61680.0,0.324252]
[1728050272850,0.01340057,61687.0,61667.0,0.10534883]
[1728050273128,0.00164,61689.0,61673.0,0.24197646]
[1728050273129,0.01340181,61686.0,61673.0,0.24197646]
[1728050273347,0.00164,61689.0,61684.0,0.324231]
[1728050273591,0.01340871,61688.0,61687.0,0.162108]
[1728050273834,0.162112,61686.0,61683.0,0.162117]
[1728050274071,0.324218,61687.0,61684.0,0.162115]
[1728050274072,0.01340871,61685.0,61684.0,0.162115]
[1728050274560,0.01340871,61685.0,61684.0,0.162116]
[1728050275801,0.03883384,61685.0,61684.0,0.162116]
[1728050276020,0.01341921,61685.0,61684.0,0.162116]
[1728050276288,0.00164,61689.0,61688.0,0.162106]
[1728050276895,0.0150796,61689.0,61688.0,0.162106]
[1728050277789,0.0150796,61689.0,61684.0,0.006]
[1728050277790,0.01479493,61689.0,61684.0,0.006]
[1728050278031,0.0134396,61688.0,61685.0,0.324226]
[1728050278284,0.00535533,61689.0,61688.0,0.162106]
[1728050278532,0.01880935,61689.0,61688.0,0.162106]
[1728050278753,0.01980935,61689.0,61688.0,0.162106]
[1728050279037,0.01880935,61689.0,61688.0,0.162106]
[1728050279236,0.01880934,61689.0,61688.0,0.162106]
[1728050279496,0.01480934,61689.0,61688.0,0.162106]
[1728050279740,0.01980934,61689.0,61688.0,0.162106]
[1728050280023,0.02080934,61689.0,61687.0,0.162107]
[1728050280253,0.00235533,61689.0,61688.0,0.162106]
[1728050280516,0.01581766,61689.0,61685.0,0.324223]
[1728050280772,0.01581766,61689.0,61688.0,0.162106]
[1728050280773,0.00435533,61689.0,61688.0,0.162106]
[1728050281148,0.01781937,61689.0,61688.0,0.162106]
[1728050281254,0.04323212,61689.0,61688.0,0.240306]
[1728050281492,0.04123212,61689.0,61688.0,0.240306]
[1728050281756,0.04123212,61689.0,61688.0,0.162106]
[1728050281984,0.02776808,61689.0,61688.0,0.162106]
[1728050282249,0.02776808,61689.0,61685.0,0.324224]
[1728050282250,0.04123598,61689.0,61687.0,0.162108]
[1728050282496,0.04023598,61689.0,61688.0,0.162106]
[1728050282742,0.04024303,61689.0,61688.0,0.162106]
[1728050282999,0.04224303,61689.0,61682.0,0.32424]
[1728050283274,0.162108,61687.0,61686.0,0.00082]
[1728050283532,0.25654299,61687.0,61686.0,0.00082]
[1728050283776,0.09443499,61687.0,61686.0,0.00082]
[1728050284021,0.01347495,61687.0,61686.0,0.00082]
[1728050284344,0.01347495,61687.0,61686.0,0.162931]
[1728050284527,0.01347495,61687.0,61686.0,0.00082]
[1728050284792,0.17558295,61687.0,61686.0,0.00082]
[1728050285063,0.27174525,61687.0,61686.0,0.00082]
[1728050285317,0.2852197,61687.0,61686.0,0.00082]
[1728050285838,0.28074525,61687.0,61686.0,0.00082]
[1728050286079,0.28074525,61687.0,61686.0,0.00182]
[1728050286080,0.29521255,61687.0,61686.0,0.00182]
[1728050286434,0.40621255,61687.0,61686.0,0.00182]
[1728050286577,0.49521255,61687.0,61686.0,0.00082]
[1728050287068,0.53263108,61687.0,61686.0,0.00182]
[1728050287328,0.52063108,61687.0,61686.0,0.00082]
[1728050287575,0.41099383,61687.0,61686.0,0.00082]
[1728050287819,0.05288583,61687.0,61686.0,0.00182]
[1728050288064,0.22899383,61687.0,61686.0,0.00182]
[1728050288351,0.05288583,61687.0,61686.0,0.163931]
[1728050288635,0.03941853,61687.0,61686.0,0.00182]
[1728050288802,0.05289326,61687.0,61686.0,0.00182]
[1728050289054,0.05289326,61687.0,61686.0,0.163931]
[1728050289287,0.06689326,61687.0,61686.0,0.163931]
[1728050290540,0.05289326,61687.0,61686.0,0.162931]
[1728050290766,0.03889326,61687.0,61686.0,0.162931]
[1728050290999,0.04189326,61687.0,61686.0,0.162931]
[1728050291237,0.01747473,61687.0,61686.0,0.162931]
[1728050291475,0.01647473,61687.0,61686.0,0.162931]
[1728050291997,0.01649006,61687.0,61686.0,0.162931]
[1728050292238,0.01349006,61687.0,61686.0,0.162931]
[1728050292477,0.00135533,61689.0,61688.0,0.162106]
[1728050293743,0.01483673,61689.0,61688.0,0.162106]
[1728050293932,0.01683673,61689.0,61688.0,0.162106]
[1728050294173,0.01683673,61689.0,61688.0,0.240606]
[1728050294418,0.01683673,61689.0,61688.0,0.50379271]
[1728050294723,0.00335533,61689.0,61688.0,0.52216611]
[1728050295167,0.00135533,61689.0,61688.0,0.52216611]
[1728050295390,0.00135533,61689.0,61688.0,0.52216531]
[1728050295655,0.00235533,61689.0,61688.0,0.53334066]
[1728050295881,0.00335533,61689.0,61688.0,0.51496806]
[1728050296135,0.00235533,61689.0,61688.0,0.50896806]
[1728050296370,0.00335533,61689.0,61688.0,0.51596806]
[1728050297069,0.00235533,61689.0,61688.0,0.51596806]
[1728050297784,0.00235533,61689.0,61688.0,0.51796806]
[1728050298024,0.00307061,61689.0,61688.0,0.51796806]
[1728050298284,0.00307061,61689.0,61688.0,0.247606]
[1728050298827,0.00307061,61689.0,61688.0,0.007]
[1728050299255,0.16517361,61689.0,61688.0,0.007]
[1728050299262,0.162108,61687.0,61686.0,0.00082]
[1728050299477,0.252508,61687.0,61686.0,0.00082]
[1728050299708,0.10385614,61687.0,61686.0,0.162931]
[1728050299930,0.01345614,61687.0,61686.0,0.162931]
[1728050300169,0.01345614,61687.0,61686.0,0.245031]
[1728050300635,0.02952999,61689.0,61688.0,0.162106]
[1728050300636,0.02852999,61689.0,61688.0,0.162106]
[1728050300823,0.04198185,61689.0,61688.0,0.35024026]
[1728050301101,0.04198185,61689.0,61688.0,0.51342697]
[1728050301102,0.02852999,61689.0,61688.0,0.51342697]
[1728050301525,0.03993977,61689.0,61688.0,0.51342697]
[1728050301765,0.03993977,61689.0,61688.0,0.61342697]
[1728050302731,0.01452999,61689.0,61688.0,0.61342697]
[1728050302950,0.01452999,61689.0,61688.0,0.70730082]
[1728050303480,0.01452999,61689.0,61688.0,0.71230082]
[1728050303924,0.01452999,61689.0,61688.0,0.71030082]
[1728050303925,0.01552999,61689.0,61688.0,0.71030082]
[1728050304833,0.01452999,61689.0,61688.0,0.70730082]
[1728050305066,0.01652999,61689.0,61688.0,0.71330082]
[1728050305548,0.01652999,61689.0,61688.0,0.72030082]
[1728050306084,0.01652999,61689.0,61688.0,0.74330082]
[1728050306305,0.01652999,61689.0,61688.0,0.82210082]
[1728050306549,0.01652999,61689.0,61688.0,0.93482482]
[1728050307056,0.00307061,61689.0,61688.0,0.93482482]
[1728050307316,0.00307061,61689.0,61688.0,0.82210082]
[1728050309214,0.02847739,61689.0,61688.0,0.82210082]
[1728050310479,0.00307061,61689.0,61688.0,0.82210082]
[1728050311406,0.00164,61691.0,61690.0,0.3734]
[1728050311655,0.00164,61691.0,61690.0,0.53658671]
[1728050311887,0.00164,61691.0,61690.0,0.81859482]
[1728050312154,0.00164,61691.0,61690.0,0.91659482]
[1728050312155,0.0270446,61691.0,61690.0,0.91659482]
[1728050312663,0.24197646,61703.0,61700.0,0.002]
[1728050312883,0.24197646,61703.0,61702.0,0.56707711]
[1728050313141,0.24197646,61703.0,61702.0,0.81706382]
[1728050313429,0.001644,61706.0,61705.0,0.264061]
[1728050313660,0.001644,61706.0,61705.0,0.45524771]
[1728050314853,0.001644,61706.0,61705.0,0.46045584]
[1728050315151,0.001644,61706.0,61705.0,0.47245584]
[1728050315152,0.002644,61706.0,61705.0,0.47245584]
[1728050315354,0.002644,61706.0,61705.0,0.47145584]
[1728050315625,0.002644,61706.0,61705.0,0.48545584]
[1728050315626,0.003644,61706.0,61705.0,0.48545584]
[1728050315848,0.002644,61706.0,61705.0,0.46045584]
[1728050316072,0.003644,61706.0,61705.0,0.48845584]
[1728050317516,0.003644,61706.0,61705.0,0.48645584]
[1728050317972,0.00335934,61706.0,61705.0,0.48645584]
[1728050319665,0.00335934,61706.0,61705.0,0.46345584]
[1728050319964,0.00335934,61706.0,61705.0,0.45845584]
[1728050321138,0.00335934,61706.0,61705.0,0.45324771]
[1728050321378,0.00325934,61706.0,61705.0,0.45324771]
[1728050321620,0.00245934,61706.0,61705.0,0.290061]
[1728050321866,0.00245934,61706.0,61705.0,0.190061]
[1728050322206,0.00235934,61706.0,61705.0,0.190061]
[1728050322345,0.00215934,61706.0,61705.0,0.35324771]
[1728050322585,0.00145934,61706.0,61705.0,0.35324771]
[1728050323057,0.00135934,61706.0,61705.0,0.35324771]
[1728050323325,0.00075934,61706.0,61705.0,0.35324771]
[1728050323552,0.00045934,61706.0,61705.0,0.43924771]
[1728050323778,0.00045934,61706.0,61705.0,0.53924771]
[1728050324028,0.00025934,61706.0,61705.0,0.54524771]
[1728050324273,0.2418358,61717.0,61706.0,0.1]
[1728050324505,0.2418358,61717.0,61716.0,0.162032]
[1728050324506,0.2417358,61717.0,61716.0,0.162032]
[1728050324743,0.2416358,61717.0,61716.0,0.162032]
[1728050324978,0.0009,61706.0,61705.0,0.176061]
[1728050325257,0.0014,61706.0,61705.0,0.278061]
[1728050325499,0.0254026,61708.0,61705.0,0.1]
[1728050325738,0.24197646,61717.0,61705.0,0.1]
[1728050325971,0.24197646,61717.0,61716.0,0.001]
[1728050326226,0.57937675,61717.0,61705.0,0.1]
[1728050326476,0.57937675,61717.0,61699.0,0.0767]
[1728050326477,0.324056,61718.0,61712.0,0.324082]
[1728050326718,0.24197646,61717.0,61712.0,0.324082]
[1728050326950,0.16204,61713.0,61710.0,0.162047]
[1728050327178,0.16204,61713.0,61697.0,0.28200811]
[1728050327179,0.0794,61712.0,61705.0,0.324122]
[1728050327432,0.094,61710.0,61709.0,0.16205]
[1728050328623,0.162055,61708.0,61699.0,0.324151]
[1728050328898,0.162059,61706.0,61703.0,0.162064]
[1728050328911,0.094,61710.0,61693.0,0.24197646]
[1728050329146,0.25605,61710.0,61709.0,0.003]
[1728050329363,0.25605,61710.0,61707.0,0.162055]
[1728050329573,0.094,61710.0,61709.0,0.16205]
[1728050330266,0.094,61710.0,61709.0,0.16405]
[1728050330551,0.094,61710.0,61709.0,0.002]
[1728050330714,0.094,61710.0,61708.0,0.162053]
[1728050330930,0.094,61710.0,61707.0,0.162055]
[1728050330931,0.256048,61710.0,61707.0,0.162055]
[1728050331140,0.10464,61710.0,61709.0,0.001]
[1728050331395,0.10464,61710.0,61709.0,0.16305]
[1728050331396,0.11164,61710.0,61709.0,0.16305]
[1728050331680,0.11164,61710.0,61709.0,0.16205]
[1728050331681,0.00864,61710.0,61709.0,0.16205]
[1728050332375,0.00864,61710.0,61703.0,0.324133]
[1728050332684,0.01564,61710.0,61708.0,0.16205]